Cogmind - Beta 15 @@@ ROGUE MODE // 2025.07.04 @ 16:21:32 Player: Wall-e Result: Destroyed by G-34 Mercenary with Small Laser Performance ------------- Evolutions (1) 500 Regions Visited (2) 400 Robots Destroyed (18) 90 Value Destroyed (421) 421 Prototype IDs (0) 0 Alien Tech Used (0) 0 Bonus (0) 0 TOTAL SCORE: 1411 Bonus ------- None Cogmind --------- Core Integrity 0/400 Matter 153/300 Energy 100/100 System Corruption 0% Temperature Cool (6) Movement Core (700) Ox13 Location -9/Materials Parts ------- > --- POWER (1) -------- (None) > --- PROPULSION (3) --- (None) > --- UTILITY (3) ------ High-capacity Storage Unit > --- WEAPON (2) ------- Mining Claw > --- INVENTORY (20) --- Compact Wheel Compact Wheel Hover Unit Assault Rifle Assault Rifle Assault Rifle Peak State ------------ > --- POWER ------------ Light Ion Engine > --- PROPULSION ------- Aluminum Leg Aluminum Leg Aluminum Leg > --- UTILITY ---------- High-capacity Storage Unit ECM Suite > --- WEAPON ----------- Mining Claw Mining Claw > --- INVENTORY -------- Light Ion Engine Aluminum Leg Compact Wheel Compact Wheel Hover Unit Assault Rifle Assault Rifle Assault Rifle Grenade Launcher Grenade Launcher Grenade Launcher Mining Claw [Rating: 9] Favorites ----------- Power Light Ion Engine Engine Light Ion Engine Propulsion Aluminum Leg Leg Aluminum Leg Utility High-capacity Storage Unit Device ECM Suite Storage High-capacity Storage Unit Weapon Mining Claw Ballistic Gun Assault Rifle Launcher Grenade Launcher Slashing Weapon Mining Claw Build | -11 -10 -9 ------- Run | Yrd Mat Mat Slots Evolved 2 | . . 2 Power . | . . . Propulsion 1 | . . 1 Utility 1 | . . 1 Weapon . | . . . Parts Attached 22 | 6 6 10 Power 4 | 1 1 2 Engine 4 | 1 1 2 Core . | . . . Reactor . | . . . Propulsion 6 | 2 1 3 Treads . | . . . Leg 6 | 2 1 3 Wheel . | . . . Hover . | . . . Flight . | . . . Utility 3 | 1 1 1 Device 1 | . . 1 Storage 2 | 1 1 . Processor . | . . . Hackware . | . . . Protection . | . . . Artifact . | . . . Weapon 9 | 2 3 4 Energy Gun . | . . . Energy Cannon . | . . . Ballistic Gun 3 | 2 1 . Ballistic Cannon . | . . . Launcher 3 | . . 3 Special Weapon . | . . . Impact Weapon . | . . . Slashing Weapon 3 | . 2 1 Piercing Weapon . | . . . Special Melee Weapon . | . . . Unidentified Prototypes . | . . . Parts Lost 16 | . 2 14 Power 4 | . 1 3 Propulsion 6 | . 1 5 Utility 1 | . . 1 Weapon 5 | . . 5 Highest Loss Streak 12 | . 1 12 To Critical Strikes . | . . . Average Backups 7 | 2 6 10 Power . | . . . Propulsion 2 | 1 2 3 Utility . | . . . Weapon 3 | . 3 6 Tool/Special . | . . . Unused Backups 6 | 1 . 5 Power . | . . . Propulsion 3 | . . 3 Utility . | . . . Weapon 3 | 1 . 2 Tool/Special . | . . . Average Slot Usage (%) 78 | . 83 66 Engine 10 | . 12 6 Leg 25 | . 27 21 Device 2 | . . 8 Storage 13 | . 14 11 Ballistic Gun 10 | . 15 . Slashing Weapon 13 | . 12 16 Peak Build Rating 9 | 6 7 9 Average Rating 5 | 3 6 6 On Entrance 4 | . 6 7 Naked Turns . | . . . Heaviest Build 49 | 13 47 49 Greatest Support 30 | 20 20 30 Greatest Overweight (x) 14 | . 4 14 Average Overweight (x) 1 | . 1 2 Largest Inventory Capacity 20 | 8 20 20 Average Capacity 16 | 7 16 20 Most Carried 14 | 6 14 13 Average Carried 7 | 2 6 10 Final Capacity 20 | 8 20 20 Final Carried 14 | 3 14 6 Class Distribution -------------------- 100% | Mutant Dominant Class ---------------- Mutant | -10/Materials Mutant | -9/Materials Resources | -11 -10 -9 ----------- Run | Yrd Mat Mat Matter Collected 458 | 155 205 98 Remotely . | . . . Salvage Created 382 | . 198 184 Parts 23 | . 8 15 Haulers Intercepted . | . . . Recyclers Shooed . | . . . Parts Field Recycled . | . . . Retrieved Matter . | . . . Parts Self-Destructed . | . . . Prevented . | . . . Kills | -11 -10 -9 ------- Run | Yrd Mat Mat Combat Hostiles Destroyed 13 | . 6 7 Melee 5 | . 3 2 Guns 3 | . 3 . AOE 5 | . . 5 Classes Destroyed 5 | . 3 2 Worker 1 | . 1 . Builder 3 | . . 3 Operator 1 | . . 1 Swarmer 4 | . 2 2 Grunt 9 | . 4 5 Best Kill Streak 8 | . 2 8 Combat Bots Only 4 | . 2 4 Max Kills in Single Turn 2 | . 1 2 Gunslinging . | . . . Exploded 2 | . . 2 Melee 1 | . 1 1 Uniques/NPCs Destroyed . | . . . Combat | -11 -10 -9 -------- Run | Yrd Mat Mat Hostile Shots Fired 262 | . 109 153 Missed 79 | . 36 43 Hits 183 | . 73 110 Projectile 183 | . 73 110 Critical Strikes 2 | . . 2 Damage Taken 1943 | . 715 1228 Core 568 | . 164 404 Absorbed by Shields . | . . . Core Remaining (%) 67 | 100 34 . Volleys Fired 39 | . 27 12 Largest 2 | . 2 2 Hottest 60 | . 40 60 Shots Fired 65 | . 51 14 Gun 51 | . 51 . Cannon . | . . . Launcher 14 | . . 14 Special . | . . . Kinetic 51 | . 51 . Thermal . | . . . Explosive 14 | . . 14 Electromagnetic . | . . . Robot Hit Streak 10 | . 10 3 Robot Miss Streak 10 | . 10 2 Penetration Max . | . . . Secondary Targets . | . . . Shots Hit Robots 52 | . 36 16 Core Hits 29 | . 10 19 Critical Kills . | . . . Critical Parts Destroyed 1 | . 1 . Critical Strikes 1 | . 1 . Destroy 1 | . 1 . Melee Attacks 33 | . 18 15 Impact . | . . . Slashing 33 | . 18 15 Piercing . | . . . Sneak Attacks 2 | . 1 1 Combat Hostiles . | . . . Follow-up Attacks 1 | . . 1 Damage Inflicted 1452 | . 480 972 Guns 293 | . 293 . Cannons . | . . . Explosions 727 | . . 727 Melee 432 | . 187 245 Ramming . | . . . Kinetic 293 | . 293 . Thermal . | . . . Explosive 727 | . . 727 Electromagnetic . | . . . Impact . | . . . Slashing 432 | . 187 245 Piercing . | . . . Highest Corruption 3 | . 3 . Average Corruption 2 | . 2 . Corruption Purged . | . . . Corruption Blocked . | . . . Effects 7 | . 7 . Message Errors 2 | . 2 . Matter Fused 1 | . 1 . Heat Flow Errors 1 | . 1 . Energy Discharges 1 | . 1 . Data Loss (major) 1 | . 1 . Alerts 1 | . 1 . Overload Shots . | . . . Overflow Damage 54 | . . 54 Projectiles . | . . . Explosions 47 | . . 47 Melee 7 | . . 7 Knockbacks . | . . . Impact . | . . . Kinetic . | . . . Secondary . | . . . Self-Inflicted Damage 58 | . . 58 Shots 2 | . . 2 Rammed . | . . . Targets Rammed . | . . . Kicked . | . . . Crushed . | . . . Highest Temperature 107 | . 107 5 Average Temperature 16 | . 19 2 Received Heat Transfer 702 | . 270 432 Siege Activations . | . . . Martial Activations . | . . . Shielding Activations . | . . . Robots Disrupted . | . . . Combat Hostiles . | . . . Robots Corrupted . | . . . Combat Hostiles . | . . . Parts Fried . | . . . Impact Corruptions . | . . . Robots Melted . | . . . Combat Hostiles . | . . . Parts Melted . | . . . Heat Transferred . | . . . Parts Sabotaged . | . . . Parts Stolen . | . . . Parts Stripped . | . . . Power Chain Reactions . | . . . Alert | -11 -10 -9 ------- Run | Yrd Mat Mat Maximum Alert Level . | . . . Low Security (%) 100 | 100 100 100 Level 1 . | . . . Level 2 . | . . . Level 3 . | . . . Level 4 . | . . . Level 5 . | . . . High Security . | . . . Max Security . | . . . Peak Influence 155 | . 69 155 Initial 20 | . . 20 Average 21 | . 17 39 Influence Increases 418 | . 168 250 Destroy 0b10 Robot/C 260 | . 120 140 Destroy 0b10 Robot/NC 25 | . 5 20 Destroy Leader 30 | . 10 20 Successful Hack 3 | . 3 . Disable Machine 45 | . . 45 Destroy Structure 25 | . . 25 Lose Combat Pursuer 30 | . 30 . Influence Decreases 283 | . 119 164 Entered New Map 29 | . . 29 Time Decay 169 | . 109 60 Lost Part 85 | . 10 75 Squads Dispatched 2 | . 1 1 Investigation 1 | . 1 . Extermination . | . . . Reinforcement 1 | . . 1 Assault . | . . . Garrison . | . . . Intercept . | . . . Searches Triggered . | . . . Construction Impeded . | . . . Haulers Reinforced . | . . . Active Scanning Responses . | . . . Cargo Convoy Interrupts . | . . . Stealth | -11 -10 -9 --------- Run | Yrd Mat Mat Distress Signals 2 | . 1 1 Communications Jammed . | . . . Distress Signals . | . . . Times Spotted 34 | . 18 16 Peak Tracking Total 6 | . 6 6 Tactical Retreats 3 | . 2 1 Traps | -11 -10 -9 ------- Run | Yrd Mat Mat Traps Triggered 3 | . 3 . Indirectly . | . . . Trap Hack Attempts . | . . . Triggered . | . . . Disarmed . | . . . Reprogrammed . | . . . Reused . | . . . Traps Extracted . | . . . Installed . | . . . Triggered . | . . . Machines | -11 -10 -9 ---------- Run | Yrd Mat Mat Machines Disabled 3 | . . 3 Max in Single Turn 2 | . . 2 Machines Repaired . | . . . Machines Dismantled . | . . . Machines Sabotaged . | . . . Overloaded Fab Kills . | . . . Hacking | -11 -10 -9 --------- Run | Yrd Mat Mat Machines Accessed 1 | . 1 . Terminals 1 | . 1 . Fabricators . | . . . Repair Stations . | . . . Recycling Units . | . . . Scanalyzers . | . . . Garrison Access . | . . . Total Hacks 5 | . 5 . Successful 3 | . 3 . Failed 2 | . 2 . Catastrophic . | . . . Database Lockouts . | . . . Manual 4 | . 4 . Terminals 5 | . 5 . Fabricators . | . . . Repair Stations . | . . . Recycling Units . | . . . Scanalyzers . | . . . Garrison Access . | . . . Terminal Hacks . | . . . Fabricator Hacks . | . . . Repair Station Hacks . | . . . Recycling Unit Hacks . | . . . Scanalyzer . | . . . Garrison Access Hacks . | . . . Unauthorized Hacks 3 | . 3 . Terminals 3 | . 3 . Track 1 | . 1 . Botnet 1 | . 1 . Operators 1 | . 1 . Fabricators . | . . . Repair Stations . | . . . Recycling Units . | . . . Scanalyzers . | . . . Garrison Access . | . . . Data Cores Recovered . | . . . Used . | . . . Hacking Detections 1 | . 1 . Full Trace Events 1 | . 1 . Feedback Events . | . . . Feedback Blocked . | . . . Robot Schematics Acquired . | . . . Robots Built . | . . . Authchips . | . . . Time . | . . . Total Robot Build Rating . | . . . Part Schematics Acquired . | . . . Parts Built . | . . . Authchips . | . . . Time . | . . . Total Part Build Rating . | . . . Parts Repaired . | . . . Time . | . . . Parts Recycled . | . . . Recycled Matter . | . . . Retrieved Matter . | . . . Retrieved Components . | . . . Parts Scanalyzed . | . . . Part Schematics Acquired . | . . . Parts Damaged . | . . . Bothacking | -11 -10 -9 ------------ Run | Yrd Mat Mat Used RIF Installer . | . . . Robots Hacked . | . . . Non-combat . | . . . Combat . | . . . Robot Hacks Applied . | . . . Relay Couplers Released . | . . . Fabnet Peak Effective % . | . . . Robots Rewired . | . . . Allies Hacked . | . . . Hacks Repelled . | . . . Allies | -11 -10 -9 -------- Run | Yrd Mat Mat Total Allies . | . . . Largest Group . | . . . Highest-Rated Group . | . . . Highest-Rated Ally . | . . . Total Orders . | . . . Ally Attacks . | . . . Total Damage . | . . . Kills . | . . . Allies Corrupted . | . . . Allies Melted . | . . . Intel | -11 -10 -9 ------- Run | Yrd Mat Mat Active Infowar (turns) 165 | . . 165 ECM 165 | . . 165 Robot Analysis Total . | . . . Derelict Logs Recovered . | . . . Drone Launches . | . . . Drone Recoveries . | . . . Exploration | -11 -10 -9 ------------- Run | Yrd Mat Mat Turns Passed 872 | 76 578 218 Spaces Moved 314 | 55 206 53 Core 9 | 5 . 4 Treads . | . . . Legs 305 | 50 206 49 Wheels . | . . . Hover . | . . . Flight . | . . . Fastest Speed 50 | 50 120 190 Average Speed 196 | 113 204 251 Slowest Speed 750 | 120 400 750 Overloaded Moves . | . . . Propulsion Burnouts . | . . . Robots Hopped . | . . . Potential Cave-ins . | . . . Cave-ins Triggered . | . . . Exploration Rate (%) 21 | 5 43 15 Regions Visited 2 Branch Regions . Pre-discovered Areas . | . . . Known Exits Taken . | . . . Unknown Exits Taken 2 | 1 1 . Scrap Searched . | . . . Spaces Dug . | . . . Terrain Destroyed 32 | . . 32 Melee . | . . . Projectile . | . . . AOE 32 | . . 32 Terrain Rammed . | . . . Walls Destroyed . | . . . Machines Disabled . | . . . Actions | -11 -10 -9 --------- Run | Yrd Mat Mat Total 444 | 67 282 95 Wait 15 | . 10 5 Move 312 | 54 205 53 Hop . | . . . Pick Up 20 | 6 14 . Fast Attach 7 | 4 1 2 Attach 12 | 2 2 8 Detach . | . . . Swap 4 | . 3 1 Drop 4 | 1 3 . Fire 39 | . 27 12 Melee 31 | . 17 14 Ram . | . . . Kick . | . . . Crush . | . . . Escape Stasis . | . . . Rewire . | . . . Trap . | . . . Miscellaneous . | . . . Route ------- -11/Scrapyard -10/Materials (discovered 2 exits: [*Mat] / [*Sub]) -9/Materials History --------- Turn | Location | Event 28 | -11/Scrapyard | Discovered new exit (range 16) 77 | -11/Scrapyard | Entered Materials 316 | -10/Materials | Build established: Mutant 442 | -10/Materials | Discovered new exit (range 10) 491 | -10/Materials | Core integrity fell below 50% 645 | -10/Materials | Discovered new exit (range 6) 655 | -10/Materials | Entered another Materials area 655 | -9/Materials | Evolved 2 slots: Propulsion x1, Utility x1 818 | -9/Materials | Core integrity fell below 50% 856 | -9/Materials | Lost 12 parts (3p4n1u4w) 866 | -9/Materials | Core integrity fell below 20% 873 | -9/Materials | Destroyed by G-34 Mercenary with Small Laser Last Messages --------------- 00847_ U-05 Engineer lays Concrete. 00848_ Destroyed Particle Gun. 00848_ G-47 Trooper destroyed. 00848_ U-05 Engineer builds a Wall. 00849_ U-05 Engineer lays Concrete. 00853_ U-05 Engineer builds a Wall. 00854_ The unstable cave ceiling collapses. 00854_ U-05 Engineer lays Concrete. 00857_ U-05 Engineer builds a Door. 00858_ U-05 Engineer lays Concrete. 00859_ U-05 Engineer builds a Wall. 00860_ The unstable cave ceiling collapses. 00863_ U-05 Engineer builds a Wall. 00865_ Grenade Launcher destroyed. 00865_ U-05 Engineer lays Concrete. 00868_ Acquired 19 matter. 00868_ U-05 Engineer lays Concrete. 00869_ U-05 Engineer builds a Wall. 00870_ U-05 Engineer lays Concrete. 00872_ The unstable cave ceiling collapses. Map ----- +----------------------------------------------------+ | ?????????????????????????# ?????# #####+######## | | ?????????????????????????# ????# # #???? | | ?????????????????????????# ???# # #???? | | ?????????????????????????# #### # #???? | | ?????????????????????????# # #???? | | ?????????????????????????+ + #???? | | ?????????????????????????# #[ #???? | | ?????????????????????????# # #???? | | ?????????????????????????# # #???? | | ?????????????????????????# """ # #???? | | ?????????????????????????# """"" ##########???? | | ?????????????????????????# """"" #????????????? | | ?????????????????????????# """"" #????????????? | | ?????????????????????????# """ #????????????? | | ?????????????????????????# #????????????? | | ?????????????????????????# #????????????? | | ?????????????????????????# """ #????????????? | | ???????????????#### ####?# """"" #????????????? | | ???????????????# ## """"" #######??????? | | ???????????????# """ # """"" #??????? | | ???????????????# ## """ % #??????? | | ???????????????# #ua ###????? | | ???????????????+ # #????? | | ???????????????# + + ?? | | ???????????????# #Y %% # ??? | | ???????????????# " #@ ###/######### #????? | | ???????????????# # ##? ????????#????? | | ???????????????######## # u #??""" ???????????? | | ??????????????????????###! #??""" ??????????? | | ????????????????????????#%= #??""" #?????????? | | ??????????????????????? #??""" +?????????? | | ?????????????????????|| ????? ??????????? | | ???????????????????? || # ????? #?????????? | | ??????????????????# gg ## ???????#?????????? | | ?????????????????"" ^ # ????????????????? | | ?????????????????"T ##???????????????? | | ?????????????????"" ^ ????????????????? | | ??????????????????#=* ##???????????????? | | ??????????????????#=* w #????????????????? | | ??????????????????#= ##????????????????? | | ??????????????????? ###?????????????????? | | ?????????????????????? #???????????????????? | | ????????????????????????" ????????????????????? | | ?????????????????????????????????????????????????? | | ?????????????????????????????????????????????????? | | ?????????????????????????????????????????????????? | | ?????????????????????????????????????????????????? | | ?????????????????????????????????????????????????? | | ?????????????????????????????????????????????????? | | ?????????????????????????????????????????????????? | +----------------------------------------------------+ Best States ------------- Heat Dissipation 28 Energy Generation 10 Energy Capacity 250 Matter Stores 294 Matter Capacity 300 Sight Range 16 Terrain Scan Density 10 ECM Strength 1 Evasion (%) 55 Item Schematics ----------------- None Robot Schematics ------------------ None Fabricated ------------ Nothing Repaired ---------- Nothing Alien Tech Used ----------------- None Achievements -------------- None Challenges ------------ None Game ------ Seed RefineryModifiedSuite Manual? 0 Play Time 00:08:38 Cumulative 522.2 hours Start 2025.07.04 @ 16:14:59 End 2025.07.04 @ 16:21:32 Sessions 1 Manual Loads 0 Difficulty Rogue Special Mode None Game No. 188 Rogue 81 Adventurer 8 Explorer 99 Win Type - Total 17 Types 8/1/6/2/0/0/0/0/0/0 Lore% 48 Gallery% 63 Achievement% 79 Wizard Run 0 Options --------- Layout 1 ASCII 0 Keyboard 0 Movement Mouse Keybinds 0 Fullscreen 1 Font 24/Smallcaps Map View 50x35 Zoom Use 0% Tactical HUD 1 Map Filters NONE Filters NONE Steam 1 RUN: 895982e7-6a0f-4c25-9fcb-600106c89df1